[Event "Early-Titled-Tuesday-Blitz-January-30-2024"]
[Site "Chess.com"]
[Date "2024.01.30"]
[Round "6"]
[White "cthulhuuu"]
[Black "HeroWilczek"]
[Result "1/2-1/2"]
[WhiteElo "2351"]
[BlackElo "2470"]
[TimeControl "180+1"]
[EndTime "9:10:32 PST"]
[Termination "Game drawn by stalemate"]

1. e4 {[%clk 0:03:00.2]} 1... d5 {[%clk 0:02:58.8]} 2. exd5 {[%clk 0:02:58.1]}
2... Nf6 {[%clk 0:02:59.3]} 3. Nf3 {[%clk 0:02:58]} 3... Nxd5 {[%clk 0:02:52.8]}
4. d4 {[%clk 0:02:57.9]} 4... g6 {[%clk 0:02:51.9]} 5. Be2 {[%clk 0:02:56.7]}
5... Bg7 {[%clk 0:02:50.7]} 6. O-O {[%clk 0:02:57.2]} 6... O-O {[%clk
0:02:51.3]} 7. c4 {[%clk 0:02:57.5]} 7... Nf6 {[%clk 0:02:50.1]} 8. h3 {[%clk
0:02:56.8]} 8... b6 {[%clk 0:02:49.5]} 9. Nc3 {[%clk 0:02:55.4]} 9... Bb7 {[%clk
0:02:50.1]} 10. Be3 {[%clk 0:02:50.4]} 10... Nbd7 {[%clk 0:02:49.3]} 11. a4
{[%clk 0:02:42.3]} 11... c5 {[%clk 0:02:47.5]} 12. d5 {[%clk 0:02:41.6]} 12...
Ne8 {[%clk 0:02:42.8]} 13. Qd2 {[%clk 0:02:40.1]} 13... Nd6 {[%clk 0:02:42.7]}
14. Bh6 {[%clk 0:02:36.9]} 14... Nf6 {[%clk 0:02:37.2]} 15. Bxg7 {[%clk
0:02:22.7]} 15... Kxg7 {[%clk 0:02:38.1]} 16. Ne5 {[%clk 0:02:22.8]} 16... Nd7
{[%clk 0:02:26.9]} 17. f4 {[%clk 0:02:16.5]} 17... Nf5 {[%clk 0:02:00.5]} 18.
Bg4 {[%clk 0:02:00.6]} 18... e6 {[%clk 0:01:42.4]} 19. Bxf5 {[%clk 0:01:55.7]}
19... exf5 {[%clk 0:01:26.5]} 20. Rfe1 {[%clk 0:01:48.4]} 20... Re8 {[%clk
0:01:26.2]} 21. Nb5 {[%clk 0:01:44]} 21... Nf6 {[%clk 0:01:19.4]} 22. Qc3 {[%clk
0:01:31.3]} 22... a6 {[%clk 0:01:14.1]} 23. Na3 {[%clk 0:01:21.8]} 23... Kg8
{[%clk 0:01:09.6]} 24. a5 {[%clk 0:00:51]} 24... b5 {[%clk 0:01:08.9]} 25. cxb5
{[%clk 0:00:49]} 25... Qxd5 {[%clk 0:01:08.3]} 26. Qc2 {[%clk 0:00:34.5]} 26...
Qd4+ {[%clk 0:01:01.8]} 27. Qf2 {[%clk 0:00:29.3]} 27... Qxf2+ {[%clk
0:00:47.9]} 28. Kxf2 {[%clk 0:00:30.2]} 28... Ne4+ {[%clk 0:00:48.8]} 29. Kg1
{[%clk 0:00:30.7]} 29... f6 {[%clk 0:00:47.7]} 30. Nec4 {[%clk 0:00:28.3]} 30...
axb5 {[%clk 0:00:46.8]} 31. Nxb5 {[%clk 0:00:29.2]} 31... Ba6 {[%clk 0:00:47.4]}
32. Ncd6 {[%clk 0:00:26.9]} 32... Bxb5 {[%clk 0:00:40.6]} 33. Nxb5 {[%clk
0:00:25]} 33... Reb8 {[%clk 0:00:39.3]} 34. Nc3 {[%clk 0:00:14.6]} 34... Rb4
{[%clk 0:00:23.4]} 35. a6 {[%clk 0:00:12.5]} 35... Kf7 {[%clk 0:00:17.6]} 36. a7
{[%clk 0:00:10.9]} 36... Nxc3 {[%clk 0:00:15.4]} 37. bxc3 {[%clk 0:00:11]} 37...
Rb7 {[%clk 0:00:16.1]} 38. Ra5 {[%clk 0:00:11.1]} 38... Raxa7 {[%clk 0:00:15.2]}
39. Rxc5 {[%clk 0:00:11.4]} 39... Rc7 {[%clk 0:00:15.7]} 40. Rxc7+ {[%clk
0:00:09.4]} 40... Rxc7 {[%clk 0:00:16.6]} 41. Re3 {[%clk 0:00:10.1]} 41... Rc4
{[%clk 0:00:16.9]} 42. g3 {[%clk 0:00:10.1]} 42... g5 {[%clk 0:00:17.3]} 43. Rf3
{[%clk 0:00:08.1]} 43... Ke6 {[%clk 0:00:15.3]} 44. Kf2 {[%clk 0:00:08]} 44...
Kd5 {[%clk 0:00:15.7]} 45. fxg5 {[%clk 0:00:08]} 45... fxg5 {[%clk 0:00:09.3]}
46. Rxf5+ {[%clk 0:00:08.3]} 46... Ke6 {[%clk 0:00:09.7]} 47. Rxg5 {[%clk
0:00:08.7]} 47... Rxc3 {[%clk 0:00:10.3]} 48. Rh5 {[%clk 0:00:06.7]} 48... Rc7
{[%clk 0:00:09.9]} 49. Kf3 {[%clk 0:00:06.4]} 49... Kf6 {[%clk 0:00:09.9]} 50.
Rh6+ {[%clk 0:00:04.5]} 50... Kg7 {[%clk 0:00:09.8]} 51. Re6 {[%clk 0:00:05]}
51... Rc3+ {[%clk 0:00:10.2]} 52. Re3 {[%clk 0:00:05.4]} 52... Rc4 {[%clk
0:00:10.6]} 53. g4 {[%clk 0:00:05.8]} 53... Kg6 {[%clk 0:00:10.7]} 54. h4 {[%clk
0:00:06.2]} 54... Ra4 {[%clk 0:00:10.8]} 55. Re4 {[%clk 0:00:06.6]} 55... Ra3+
{[%clk 0:00:10.5]} 56. Kf4 {[%clk 0:00:07]} 56... Ra5 {[%clk 0:00:11.1]} 57.
Re6+ {[%clk 0:00:06.9]} 57... Kg7 {[%clk 0:00:11.4]} 58. Re5 {[%clk 0:00:07.4]}
58... Ra4+ {[%clk 0:00:11.3]} 59. Kf5 {[%clk 0:00:07.9]} 59... Ra1 {[%clk
0:00:12]} 60. Re7+ {[%clk 0:00:08.2]} 60... Kg8 {[%clk 0:00:12.7]} 61. Kg5
{[%clk 0:00:07.9]} 61... Ra5+ {[%clk 0:00:12.6]} 62. Kf4 {[%clk 0:00:08.4]}
62... Ra4+ {[%clk 0:00:13.1]} 63. Re4 {[%clk 0:00:08.8]} 63... Ra5 {[%clk
0:00:13.8]} 64. Re5 {[%clk 0:00:09.3]} 64... Ra4+ {[%clk 0:00:14.3]} 65. Kg5
{[%clk 0:00:09.8]} 65... Ra6 {[%clk 0:00:14.1]} 66. h5 {[%clk 0:00:09.9]} 66...
Kg7 {[%clk 0:00:13.9]} 67. h6+ {[%clk 0:00:09]} 67... Kf7 {[%clk 0:00:14.4]} 68.
Rf5+ {[%clk 0:00:09]} 68... Kg8 {[%clk 0:00:14.4]} 69. Rf6 {[%clk 0:00:08.6]}
69... Rxf6 {[%clk 0:00:09.1]} 70. Kxf6 {[%clk 0:00:08.6]} 70... Kh8 {[%clk
0:00:10]} 71. g5 {[%clk 0:00:07.4]} 71... Kg8 {[%clk 0:00:10.5]} 72. Ke6 {[%clk
0:00:06.9]} 72... Kh8 {[%clk 0:00:10.8]} 73. Kf5 {[%clk 0:00:06.4]} 73... Kg8
{[%clk 0:00:11.7]} 74. Kf6 {[%clk 0:00:05.1]} 74... Kh8 {[%clk 0:00:12]} 75. Ke7
{[%clk 0:00:04.6]} 75... Kg8 {[%clk 0:00:12.4]} 76. Ke8 {[%clk 0:00:05.1]} 76...
Kh8 {[%clk 0:00:12.8]} 77. Ke7 {[%clk 0:00:05.1]} 77... Kg8 {[%clk 0:00:13.2]}
78. Kf6 {[%clk 0:00:05.7]} 78... Kh8 {[%clk 0:00:13.5]} 79. g6 {[%clk
0:00:05.8]} 79... hxg6 {[%clk 0:00:13.7]} 80. Kxg6 {[%clk 0:00:06.3]} 80... Kg8
{[%clk 0:00:13.5]} 81. h7+ {[%clk 0:00:06.7]} 81... Kh8 {[%clk 0:00:14.4]} 82.
Kh6 {[%clk 0:00:07.2]} 1/2-1/2

[Event "Early-Titled-Tuesday-Blitz-January-30-2024"]
[Site "Chess.com"]
[Date "2024.01.30"]
[Round "6"]
[White "Alexei_Gubajdullin"]
[Black "ErikRonka"]
[Result "0-1"]
[WhiteElo "2614"]
[BlackElo "2496"]
[TimeControl "180+1"]
[EndTime "9:10:38 PST"]
[Termination "ErikRonka won by resignation"]

1. Nf3 {[%clk 0:03:00]} 1... Nf6 {[%clk 0:02:57.2]} 2. g3 {[%clk 0:02:59.8]}
2... d5 {[%clk 0:02:54.9]} 3. Bg2 {[%clk 0:02:59.8]} 3... e6 {[%clk 0:02:55.6]}
4. O-O {[%clk 0:02:59.8]} 4... c5 {[%clk 0:02:56.3]} 5. b3 {[%clk 0:02:59.9]}
5... Nc6 {[%clk 0:02:55.7]} 6. Bb2 {[%clk 0:03:00.2]} 6... Be7 {[%clk
0:02:51.4]} 7. e3 {[%clk 0:03:00.4]} 7... O-O {[%clk 0:02:50]} 8. c4 {[%clk
0:03:00.4]} 8... d4 {[%clk 0:02:43.4]} 9. Nxd4 {[%clk 0:02:59.1]} 9... cxd4
{[%clk 0:02:44.3]} 10. exd4 {[%clk 0:02:57.7]} 10... Nxd4 {[%clk 0:02:36.7]} 11.
Nc3 {[%clk 0:02:57.3]} 11... Rb8 {[%clk 0:02:22.2]} 12. Re1 {[%clk 0:02:56.9]}
12... b6 {[%clk 0:02:21.9]} 13. a4 {[%clk 0:02:46.8]} 13... Bb7 {[%clk
0:02:21.1]} 14. Nb5 {[%clk 0:02:47]} 14... Nxb5 {[%clk 0:02:15.5]} 15. axb5
{[%clk 0:02:46.8]} 15... Bxg2 {[%clk 0:02:14.3]} 16. Kxg2 {[%clk 0:02:46.9]}
16... Qd7 {[%clk 0:01:58.4]} 17. d4 {[%clk 0:02:44.9]} 17... Rfd8 {[%clk
0:01:58]} 18. Qe2 {[%clk 0:02:36.4]} 18... Ra8 {[%clk 0:01:55.3]} 19. Ra6 {[%clk
0:02:31.8]} 19... Ne8 {[%clk 0:01:52.4]} 20. Rea1 {[%clk 0:02:30.8]} 20... Bf6
{[%clk 0:01:51.9]} 21. Qf3 {[%clk 0:02:29.6]} 21... Bxd4 {[%clk 0:01:34.2]} 22.
Bxd4 {[%clk 0:02:27.2]} 22... Qxd4 {[%clk 0:01:33.6]} 23. Rxa7 {[%clk
0:02:28.1]} 23... Rxa7 {[%clk 0:01:27.1]} 24. Rxa7 {[%clk 0:02:28.2]} 24... Nf6
{[%clk 0:01:05.7]} 25. Rb7 {[%clk 0:02:22.8]} 25... h6 {[%clk 0:00:57.8]} 26.
Qe3 {[%clk 0:02:16.8]} 26... Qxe3 {[%clk 0:00:42.5]} 27. fxe3 {[%clk 0:02:16.8]}
27... Rd6 {[%clk 0:00:43]} 28. b4 {[%clk 0:02:15.2]} 28... Ne4 {[%clk
0:00:42.7]} 29. Rc7 {[%clk 0:02:13]} 29... f5 {[%clk 0:00:19]} 30. c5 {[%clk
0:02:12.4]} 30... bxc5 {[%clk 0:00:18.7]} 31. bxc5 {[%clk 0:02:12.4]} 31... Rd5
{[%clk 0:00:19.3]} 32. b6 {[%clk 0:01:47.1]} 32... Nxc5 {[%clk 0:00:13.9]} 33.
b7 {[%clk 0:01:45.3]} 33... Nxb7 {[%clk 0:00:13.9]} 34. Rxb7 {[%clk 0:01:45.4]}
34... Kh7 {[%clk 0:00:13.4]} 35. h4 {[%clk 0:01:41.6]} 35... Kg6 {[%clk
0:00:11.1]} 36. Kf3 {[%clk 0:01:38.7]} 36... Kf6 {[%clk 0:00:11.2]} 37. g4
{[%clk 0:01:33.8]} 37... fxg4+ {[%clk 0:00:09.5]} 38. Kxg4 {[%clk 0:01:33.9]}
38... Re5 {[%clk 0:00:10]} 39. Kf4 {[%clk 0:01:32.7]} 39... Rh5 {[%clk
0:00:09.6]} 40. Kg4 {[%clk 0:01:31.5]} 40... Ra5 {[%clk 0:00:09.6]} 41. Rb8
{[%clk 0:01:30]} 41... Ra4+ {[%clk 0:00:08.1]} 42. Kg3 {[%clk 0:01:30]} 42...
Kf5 {[%clk 0:00:07.1]} 43. Rf8+ {[%clk 0:01:26.4]} 43... Kg6 {[%clk 0:00:07]}
44. Re8 {[%clk 0:01:24.6]} 44... Kf7 {[%clk 0:00:06.8]} 45. Rb8 {[%clk
0:01:23.9]} 45... g6 {[%clk 0:00:07.1]} 46. Rh8 {[%clk 0:01:22.2]} 46... Kg7
{[%clk 0:00:07]} 47. Re8 {[%clk 0:01:22.2]} 47... Kf6 {[%clk 0:00:07.1]} 48. Rh8
{[%clk 0:01:22]} 48... h5 {[%clk 0:00:07.9]} 49. Rf8+ {[%clk 0:01:21.9]} 49...
Ke5 {[%clk 0:00:07]} 50. Rg8 {[%clk 0:01:22]} 50... Kf5 {[%clk 0:00:07.3]} 51.
Rf8+ {[%clk 0:01:21.6]} 51... Ke5 {[%clk 0:00:07.8]} 52. Re8 {[%clk 0:01:11.3]}
52... Rg4+ {[%clk 0:00:07.8]} 53. Kh3 {[%clk 0:01:11.2]} 53... Re4 {[%clk
0:00:08.1]} 54. Rg8 {[%clk 0:01:00.6]} 54... Rxe3+ {[%clk 0:00:09]} 55. Kh2
{[%clk 0:01:00.8]} 55... Kf6 {[%clk 0:00:09.5]} 56. Rf8+ {[%clk 0:01:01]} 56...
Kg7 {[%clk 0:00:09.9]} 57. Re8 {[%clk 0:01:01.1]} 57... Re4 {[%clk 0:00:10.4]}
58. Kh3 {[%clk 0:01:00.5]} 58... Kf7 {[%clk 0:00:11.1]} 59. Rh8 {[%clk
0:01:00.4]} 59... Rg4 {[%clk 0:00:10.8]} 60. Ra8 {[%clk 0:00:59]} 60... Kf6
{[%clk 0:00:11.2]} 61. Rf8+ {[%clk 0:00:58.5]} 61... Ke5 {[%clk 0:00:11.5]} 62.
Rf1 {[%clk 0:00:57.5]} 62... Kd5 {[%clk 0:00:11.3]} 63. Rd1+ {[%clk 0:00:57.7]}
63... Ke4 {[%clk 0:00:07.7]} 64. Re1+ {[%clk 0:00:57.9]} 64... Kf5 {[%clk
0:00:08.2]} 65. Rf1+ {[%clk 0:00:55.9]} 65... Rf4 {[%clk 0:00:08.6]} 66. Rg1
{[%clk 0:00:56]} 66... e5 {[%clk 0:00:09]} 67. Ra1 {[%clk 0:00:50.7]} 67... e4
{[%clk 0:00:09.1]} 68. Ra5+ {[%clk 0:00:50.3]} 68... Kf6 {[%clk 0:00:09.4]} 69.
Ra6+ {[%clk 0:00:50.4]} 69... Kg7 {[%clk 0:00:09.8]} 70. Re6 {[%clk 0:00:45.9]}
70... Kf7 {[%clk 0:00:08.8]} 71. Re5 {[%clk 0:00:46.1]} 71... Kf6 {[%clk
0:00:08.7]} 72. Re8 {[%clk 0:00:46.3]} 72... Rg4 {[%clk 0:00:07.2]} 73. Ra8
{[%clk 0:00:40.6]} 73... Ke5 {[%clk 0:00:07.4]} 74. Ra1 {[%clk 0:00:32.5]} 74...
e3 {[%clk 0:00:07.2]} 75. Ra8 {[%clk 0:00:30.1]} 75... Kd4 {[%clk 0:00:07.2]}
76. Rd8+ {[%clk 0:00:29.3]} 76... Kc3 {[%clk 0:00:07.7]} 77. Rc8+ {[%clk
0:00:29.3]} 77... Kd2 {[%clk 0:00:08]} 78. Rd8+ {[%clk 0:00:29.3]} 78... Ke2
{[%clk 0:00:08.2]} 79. Ra8 {[%clk 0:00:27.3]} 79... Kf2 {[%clk 0:00:08.3]} 80.
Rf8+ {[%clk 0:00:26.6]} 80... Ke1 {[%clk 0:00:08.7]} 81. Ra8 {[%clk 0:00:26]}
81... e2 {[%clk 0:00:09.2]} 82. Rd8 {[%clk 0:00:22.9]} 82... Rf4 {[%clk
0:00:09]} 83. Kg3 {[%clk 0:00:22.8]} 83... Rf2 {[%clk 0:00:08.3]} 84. Ra8 {[%clk
0:00:21.6]} 84... Kf1 {[%clk 0:00:08.2]} 85. Ra2 {[%clk 0:00:17]} 85... e1=Q
{[%clk 0:00:07.5]} 86. Kh3 {[%clk 0:00:15.2]} 86... Rf3+ {[%clk 0:00:06.8]} 87.
Kh2 {[%clk 0:00:12.5]} 87... Qg3+ {[%clk 0:00:07.2]} 0-1

[Event "Early-Titled-Tuesday-Blitz-January-30-2024"]
[Site "Chess.com"]
[Date "2024.01.30"]
[Round "6"]
[White "KhazhatulyAlikhan"]
[Black "SaqoChess_Twitch"]
[Result "0-1"]
[WhiteElo "2395"]
[BlackElo "2588"]
[TimeControl "180+1"]
[EndTime "9:10:39 PST"]
[Termination "SaqoChess_Twitch won on time"]

1. e4 {[%clk 0:03:00.9]} 1... c5 {[%clk 0:02:59.2]} 2. Nf3 {[%clk 0:03:00.6]}
2... d6 {[%clk 0:02:59.2]} 3. d4 {[%clk 0:02:59.3]} 3... cxd4 {[%clk 0:03:00.1]}
4. Nxd4 {[%clk 0:03:00.1]} 4... Nf6 {[%clk 0:03:00.8]} 5. Nc3 {[%clk 0:03:00.5]}
5... g6 {[%clk 0:03:01.3]} 6. f3 {[%clk 0:02:58.9]} 6... Bg7 {[%clk 0:03:01.8]}
7. Be3 {[%clk 0:02:58.3]} 7... O-O {[%clk 0:03:02.5]} 8. Qd2 {[%clk 0:02:58.4]}
8... Nc6 {[%clk 0:03:03.1]} 9. Bd3 {[%clk 0:02:57.9]} 9... d5 {[%clk 0:03:03.5]}
10. Nxc6 {[%clk 0:02:40.3]} 10... bxc6 {[%clk 0:03:03.3]} 11. exd5 {[%clk
0:02:40.9]} 11... Nxd5 {[%clk 0:03:01.8]} 12. Nxd5 {[%clk 0:02:40.6]} 12... cxd5
{[%clk 0:03:01.9]} 13. c3 {[%clk 0:02:41.2]} 13... e5 {[%clk 0:03:01.2]} 14. O-O
{[%clk 0:02:41.2]} 14... Be6 {[%clk 0:02:56.1]} 15. Kh1 {[%clk 0:02:37.4]} 15...
a5 {[%clk 0:02:55.2]} 16. Bf2 {[%clk 0:02:35.3]} 16... a4 {[%clk 0:02:54.4]} 17.
a3 {[%clk 0:02:35.3]} 17... Qa5 {[%clk 0:02:52.8]} 18. Rad1 {[%clk 0:02:35]}
18... Rfd8 {[%clk 0:02:49.1]} 19. Rfe1 {[%clk 0:02:35.1]} 19... d4 {[%clk
0:02:39.7]} 20. Be4 {[%clk 0:01:49]} 20... dxc3 {[%clk 0:02:18.3]} 21. Qxc3
{[%clk 0:01:47.5]} 21... Qxc3 {[%clk 0:02:18.5]} 22. bxc3 {[%clk 0:01:48.4]}
22... Rxd1 {[%clk 0:02:14.9]} 23. Rxd1 {[%clk 0:01:49.3]} 23... Rc8 {[%clk
0:02:15]} 24. Be1 {[%clk 0:01:41.9]} 24... Bf8 {[%clk 0:02:13.6]} 25. Ra1 {[%clk
0:01:41]} 25... f5 {[%clk 0:02:09.8]} 26. Bc2 {[%clk 0:01:41]} 26... Bb3 {[%clk
0:01:44.8]} 27. Bxb3+ {[%clk 0:01:35.5]} 27... axb3 {[%clk 0:01:45]} 28. Rb1
{[%clk 0:01:36.4]} 28... Rd8 {[%clk 0:01:45.2]} 29. Kg1 {[%clk 0:01:29.2]} 29...
Bxa3 {[%clk 0:01:17.4]} 30. Rxb3 {[%clk 0:01:26.8]} 30... Rd1 {[%clk 0:01:11.8]}
31. Kf2 {[%clk 0:01:25.1]} 31... Ra1 {[%clk 0:01:11.2]} 32. Rb5 {[%clk
0:01:08.9]} 32... Ra2+ {[%clk 0:00:52.1]} 33. Kf1 {[%clk 0:01:07]} 33... Bd6
{[%clk 0:00:46.4]} 34. Bg3 {[%clk 0:00:50.2]} 34... f4 {[%clk 0:00:38.3]} 35.
Be1 {[%clk 0:00:35.8]} 35... h5 {[%clk 0:00:32.5]} 36. Rb6 {[%clk 0:00:34.1]}
36... Be7 {[%clk 0:00:16.8]} 37. Rxg6+ {[%clk 0:00:34.2]} 37... Kf7 {[%clk
0:00:17.4]} 38. Rh6 {[%clk 0:00:32.1]} 38... Bf6 {[%clk 0:00:12.8]} 39. Rxh5
{[%clk 0:00:17.9]} 39... Kg6 {[%clk 0:00:13.3]} 40. Rh3 {[%clk 0:00:18.6]} 40...
Rc2 {[%clk 0:00:13.1]} 41. g3 {[%clk 0:00:09.2]} 41... Rc1 {[%clk 0:00:12.1]}
42. Ke2 {[%clk 0:00:07.6]} 42... Kf5 {[%clk 0:00:10.2]} 43. Rh5+ {[%clk
0:00:04.2]} 43... Kg6 {[%clk 0:00:10.4]} 44. g4 {[%clk 0:00:04.5]} 44... Rc2+
{[%clk 0:00:11.1]} 45. Kd3 {[%clk 0:00:04.1]} 45... Rg2 {[%clk 0:00:09.8]} 46.
h4 {[%clk 0:00:03.4]} 46... Rg1 {[%clk 0:00:09.5]} 47. Ke2 {[%clk 0:00:03.1]}
47... Rg2+ {[%clk 0:00:09.4]} 48. Kd3 {[%clk 0:00:03]} 48... Ra2 {[%clk
0:00:07.4]} 49. Rf5 {[%clk 0:00:02.4]} 49... Ra1 {[%clk 0:00:06.8]} 50. h5+
{[%clk 0:00:02.8]} 50... Kg7 {[%clk 0:00:07]} 51. Bd2 {[%clk 0:00:03.2]} 51...
Rg1 {[%clk 0:00:06.2]} 52. h6+ {[%clk 0:00:02.6]} 52... Kg6 {[%clk 0:00:06.1]}
53. Rh5 {[%clk 0:00:01.7]} 53... Kh7 {[%clk 0:00:05.5]} 54. c4 {[%clk
0:00:01.8]} 54... Rf1 {[%clk 0:00:04.3]} 55. Ke2 {[%clk 0:00:02]} 55... Rg1
{[%clk 0:00:04.8]} 56. Rf5 {[%clk 0:00:01.6]} 56... Rg2+ {[%clk 0:00:05]} 57.
Kd3 {[%clk 0:00:01.7]} 57... Kg6 {[%clk 0:00:05.6]} 58. h7 {[%clk 0:00:01.7]}
58... Rh2 {[%clk 0:00:05.5]} 59. c5 {[%clk 0:00:02]} 59... Rxh7 {[%clk
0:00:05.9]} 60. Rh5 {[%clk 0:00:01.4]} 60... Rd7+ {[%clk 0:00:06]} 61. Kc2
{[%clk 0:00:01.3]} 61... Rc7 {[%clk 0:00:05.9]} 62. Bb4 {[%clk 0:00:01.9]} 62...
Kf7 {[%clk 0:00:05.7]} 63. Kb3 {[%clk 0:00:02.2]} 63... Ke6 {[%clk 0:00:06.2]}
64. Kc4 {[%clk 0:00:02.8]} 64... e4 {[%clk 0:00:05.9]} 65. fxe4 {[%clk
0:00:02.8]} 65... f3 {[%clk 0:00:06]} 66. Rf5 {[%clk 0:00:03.4]} 66... Rd7
{[%clk 0:00:06.3]} 67. Rxf3 {[%clk 0:00:03.2]} 67... Rd4+ {[%clk 0:00:07]} 68.
Kb5 {[%clk 0:00:02.8]} 68... Rxe4 {[%clk 0:00:07.5]} 69. Rg3 {[%clk 0:00:02.1]}
69... Be5 {[%clk 0:00:07.1]} 70. Rg2 {[%clk 0:00:02]} 70... Re3 {[%clk
0:00:05.1]} 71. g5 {[%clk 0:00:02.1]} 71... Rb3 {[%clk 0:00:05.7]} 72. Kc4
{[%clk 0:00:02.2]} 72... Rb1 {[%clk 0:00:05.8]} 73. g6 {[%clk 0:00:02.8]} 73...
Rc1+ {[%clk 0:00:06.5]} 74. Kb5 {[%clk 0:00:03.2]} 74... Rb1 {[%clk 0:00:07.2]}
75. Rg4 {[%clk 0:00:03.3]} 75... Bg7 {[%clk 0:00:06.7]} 76. c6 {[%clk
0:00:02.9]} 76... Kf5 {[%clk 0:00:07.1]} 77. Rc4 {[%clk 0:00:02.5]} 77... Bf8
{[%clk 0:00:06.3]} 78. g7 {[%clk 0:00:02.2]} 78... Bxb4 {[%clk 0:00:05.8]} 79.
Rxb4 {[%clk 0:00:02.9]} 79... Rg1 {[%clk 0:00:05.1]} 80. c7 {[%clk 0:00:03.4]}
80... Rxg7 {[%clk 0:00:04.8]} 81. c8=Q+ {[%clk 0:00:04]} 81... Kg6 {[%clk
0:00:05.3]} 82. Qe6+ {[%clk 0:00:03.1]} 82... Kh5 {[%clk 0:00:05.1]} 83. Qe5+
{[%clk 0:00:03.6]} 83... Rg5 {[%clk 0:00:05.1]} 0-1